lending/lending_fUSD_20250706
["ID","MTS","AMOUNT","RATE_DAILY","PERIOD"]
[370022568,1751837840751,460.0,0.00030136,120]
[370022569,1751837840898,1084.04,0.00030136,120]
[370022570,1751837841317,1150.84,0.00030136,120]
[370022571,1751837842056,518.08,0.00030136,120]
[370022572,1751837842200,460.0,0.00030136,120]
[370022573,1751837843072,844.18,0.00030136,120]
[370022574,1751837847288,460.0,0.00030136,120]
[370022575,1751837847404,887.22,0.00030136,120]
[370022576,1751837848098,686.08,0.00030136,120]
[370022577,1751837848431,460.0,0.00030136,120]
[370022578,1751837849103,1665.62148967,0.00030136,120]
[370022582,1751838308363,250.0,0.00015,2]
[370022584,1751838323296,161.51,0.00013699,2]
[370022587,1751838557466,-526.0,0.00015318,2]
[370022588,1751838557488,-500.0,0.00017064,2]
[370022589,1751838557512,-300.0,0.00017191,2]
[370022590,1751838557537,-187.67437618,0.00017634,2]
[370022591,1751838557559,-750.68,0.0001766,2]
[370022592,1751838557582,-666.0,0.00017734,2]
[370022593,1751838557605,-260.63,0.00017736,2]
[370022594,1751838557627,-300.0,0.0001776,2]
[370022595,1751838557651,-151.0,0.00017761,2]
[370022596,1751838557673,-151.0,0.00017761,2]
[370022597,1751838557696,-151.0,0.00017761,2]
[370022598,1751838557720,-151.0,0.00017761,2]
[370022599,1751838557743,-151.0,0.00017761,2]
[370022600,1751838557771,-151.0,0.00017761,2]
[370022601,1751838557795,-151.0,0.00017761,2]
[370022602,1751838557816,-151.0,0.00017761,2]
[370022603,1751838557837,-151.0,0.00017761,2]
[370022604,1751838557860,-151.0,0.00017761,2]
[370022605,1751838557880,-151.0,0.00017761,2]
[370022606,1751838557904,-151.0,0.00017761,2]
[370022607,1751838557926,-151.0,0.00017761,2]
[370022608,1751838557952,-151.0,0.00017761,2]
[370022609,1751838557976,-1200.0,0.00017771,2]
[370022610,1751838558000,-549.0,0.00017771,2]
[370022611,1751838558022,-300.0,0.00017771,2]
[370022612,1751838558045,-2346.01562382,0.00017772,2]
[370022613,1751838558854,-10000.0,0.00017772,2]
[370022614,1751838560004,-10000.0,0.00017772,2]
[370022615,1751838560486,-1553.98437618,0.00017772,2]
[370022616,1751838560508,-181.69,0.00017789,2]
[370022617,1751838560529,-5500.97912384,0.00017793,2]
[370022618,1751838560552,-1407.68,0.00017806,2]
[370022619,1751838560577,-168.0,0.00017899,2]
[370022620,1751838560599,-1187.66649998,0.00017989,2]
[370022621,1751838560882,-2627.28350002,0.00017989,2]
[370022622,1751838560904,-187.67437617,0.0001807,2]
[370022623,1751838560928,-427.0,0.00018088,2]
[370022624,1751838560950,-300.0,0.00018107,2]
[370022625,1751838560972,-427.0,0.00018114,2]
[370022626,1751838560994,-347.11843705,0.0001817,2]
[370022627,1751838561016,-5683.92368676,0.0001817,2]
[370022628,1751838561459,-1228.71831324,0.0001817,2]
[370022629,1751838561482,-207.4,0.0001817,2]
[370022630,1751838561506,-500.0,0.0001817,2]
[370022631,1751838561530,-500.0,0.0001817,2]
[370022632,1751838561553,-500.0,0.0001817,2]
[370022633,1751838561575,-300.0,0.0001817,2]
[370022634,1751838561598,-500.0,0.0001817,2]
[370022635,1751838561620,-500.0,0.0001817,2]
[370022636,1751838561641,-500.0,0.0001817,2]
[370022637,1751838561662,-500.0,0.0001817,2]
[370022638,1751838561683,-500.0,0.0001817,2]
[370022639,1751838561705,-500.0,0.0001817,2]
[370022640,1751838561725,-160.0,0.0001817,2]
[370022641,1751838561747,-500.0,0.0001817,2]
[370022642,1751838561771,-500.0,0.0001817,2]
[370022643,1751838561792,-151.0,0.0001817,2]
[370022644,1751838561813,-300.0,0.0001817,2]
[370022645,1751838561835,-500.0,0.0001817,2]
[370022646,1751838561856,-300.0,0.0001817,2]
[370022647,1751838561877,-300.0,0.0001817,2]
[370022648,1751838561903,-300.0,0.0001817,2]
[370022649,1751838561927,-300.0,0.0001817,2]
[370022650,1751838561951,-300.0,0.0001817,2]
[370022651,1751838561974,-152.88168676,0.0001817,2]
[370022652,1751838562826,-147.11831324,0.0001817,2]
[370022653,1751838562855,-300.0,0.0001817,2]
[370022654,1751838562877,-300.0,0.0001817,2]
[370022655,1751838562899,-300.0,0.0001817,2]
[370022656,1751838562920,-300.0,0.0001817,2]
[370022657,1751838562941,-300.0,0.0001817,2]
[370022658,1751838562964,-7168.409754,0.00018225,2]
[370022659,1751838562984,-168.17,0.00018278,2]
[370022660,1751838563006,-1016.30193276,0.0001828,2]
[370022661,1751838563055,-3592.85224979,0.0001828,2]
[370022662,1751838563079,-500.0,0.00018288,2]
[370022663,1751838563104,-427.0,0.0001829,2]
[370022664,1751838563126,-427.0,0.00018307,2]
[370022665,1751838563148,-189.35,0.00018329,2]
[370022666,1751838563171,-427.0,0.00018332,2]
[370022667,1751838563193,-4410.03,0.000184,2]
[370022668,1751838563216,-26.76775021,0.00018411,2]
[370022669,1751838563256,-400.23224979,0.00018411,2]
[370022670,1751838563278,-903.92,0.00018437,2]
[370022671,1751838563298,-150.0,0.00018472,2]
[370022672,1751838563319,-4410.03,0.000185,2]
[370022673,1751838563340,-777.0074504,0.00018533,2]
[370022674,1751838563361,-3358.81029981,0.000186,2]
[370022675,1751838564030,-1051.21970019,0.000186,2]
[370022676,1751838564054,-427.0,0.00018605,2]
[370022677,1751838564075,-250.0,0.00018646,2]
[370022678,1751838564097,-777.0074504,0.00018651,2]
[370022679,1751838564119,-6502.76293676,0.00018677,2]
[370022680,1751838564140,-992.00991265,0.00018709,2]
[370022681,1751838564944,-200.0,0.00017815,2]
[370022682,1751838564967,-7.99008735,0.00018709,2]
[370022683,1751838564988,-717.86,0.00018758,2]
[370022684,1751838565009,-300.0,0.0001877,2]
[370022685,1751838565032,-250.0,0.0001877,2]
[370022686,1751838565052,-2500.0,0.0001877,2]
[370022687,1751838565074,-250.0,0.0001877,2]
[370022688,1751838565097,-2500.0,0.0001877,2]
[370022689,1751838565120,-3274.14991265,0.000188,2]
[370022690,1751838565684,-1135.88008735,0.000188,2]
[370022691,1751838565708,-427.0,0.00018809,2]
[370022692,1751838565728,-4410.03,0.000189,2]
[370022693,1751838565963,-1621.71175069,0.000189,2]
[370022694,1751838565985,-777.0074506,0.00018939,2]
[370022695,1751838566007,-1000.0,0.00019,2]
[370022696,1751838566028,-273.1915,0.00019003,2]
[370022697,1751838566049,-355.17921136,0.00019003,2]
[370022698,1751838566283,-262.02568864,0.00019003,2]
[370022699,1751838566308,-2089.709,0.00019003,2]
[370022700,1751838566331,-210.28571445,0.00019005,2]
[370022701,1751838566356,-160.0,0.00019005,2]
[370022702,1751838566379,-836.76783547,0.00019005,2]
[370022703,1751838566405,-5031.42774938,0.00019035,2]
[370022704,1751838566430,-339.77221618,0.00019035,2]
[370022705,1751838566454,-167.48,0.00019042,2]
[370022706,1751838566477,-902.53179588,0.0001906,2]
[370022707,1751838566597,-262.36342412,0.0001906,2]
[370022708,1751838566623,-703.287,0.00019066,2]
[370022709,1751838566648,-339.77221606,0.00019081,2]
[370022710,1751838566671,-1000.0,0.000191,2]
[370022711,1751838566695,-7694.57735982,0.00019103,2]
[370022712,1751838566940,-8263.62744689,0.00019103,2]
[370022713,1751838566965,-427.0,0.00019104,2]
[370022714,1751838566988,-339.77221606,0.00019126,2]
[370022715,1751838567010,-969.60033705,0.00019135,2]
[370022716,1751838567571,-2410.66066295,0.00019135,2]
[370022717,1751838567592,-3343.0,0.00019135,2]
[370022718,1751838567617,-949.0,0.00019135,2]
[370022719,1751838567639,-754.0,0.00019135,2]
[370022720,1751838567660,-640.0,0.00019135,2]
[370022721,1751838567683,-805.0,0.00019135,2]
[370022722,1751838567707,-1098.33933705,0.00019135,2]
[370022723,1751838568235,-911.66066295,0.00019135,2]
[370022724,1751838568257,-1161.0,0.00019135,2]
[370022725,1751838568279,-1681.0,0.00019135,2]
[370022726,1751838568300,-931.0,0.00019135,2]
[370022727,1751838568334,-593.0,0.00019135,2]
[370022728,1751838568357,-560.0,0.00019135,2]
[370022729,1751838568379,-1283.0,0.00019135,2]
[370022730,1751838568401,-238.4317,0.00019141,2]
[370022731,1751838568423,-800.0,0.0001917,2]
[370022732,1751838568445,-339.77221606,0.00019172,2]
[370022733,1751838568468,-333.254915,0.00019173,2]
[370022734,1751838568490,-151.0,0.00019178,2]
[370022735,1751838568511,-221.22,0.00019178,2]
[370022736,1751838568535,-427.0,0.0001918,2]
[370022737,1751838568561,-339.77221606,0.00019217,2]
[370022738,1751838568584,-28.88828993,0.00019226,2]
[370022739,1751838568736,-122.11171007,0.00019226,2]
[370022740,1751838568760,-9877.88828993,0.00019226,2]
[370022741,1751838569278,-3578.94618331,0.00019226,2]
[370022742,1751838569306,-500.0,0.0001924,2]
[370022743,1751838569329,-157.05370306,0.0001924,2]
[370022744,1751838569351,-153.258881,0.00019241,2]
[370022745,1751838569375,-2121.2161192,0.00019241,2]
[370022746,1751838569397,-3489.52511343,0.00019241,2]
[370022747,1751838570383,-550.45894238,0.00019141,2]
[370022748,1751838570408,-9449.54105762,0.00019241,2]
[370022749,1751838570718,-10000.0,0.00019241,2]
[370022750,1751838571560,-10000.0,0.00019241,2]
[370022751,1751838571898,-10000.0,0.00019241,2]
[370022752,1751838572400,-1260.07034945,0.00019241,2]
[370022753,1751838572423,-1622.5752906,0.00019241,2]
[370022754,1751838572445,-7117.35435995,0.00019241,2]
[370022755,1751838573333,-10000.0,0.00019241,2]
[370022756,1751838573433,-10000.0,0.00019241,2]
[370022757,1751838574628,-10000.0,0.00019241,2]
[370022758,1751838575130,-7181.71090865,0.00019241,2]
[370022759,1751838575153,-2669.1565317,0.00019241,2]
[370022760,1751838575174,-149.13255965,0.00019241,2]
[370022761,1751838575688,-3728.37583445,0.00019241,2]
[370022762,1751838575712,-1066.6537959,0.00019241,2]
[370022763,1751838575735,-3629.0200803,0.00019241,2]
[370022764,1751838575764,-1575.95028935,0.00019248,2]
[370022765,1751838576315,-2021.26002798,0.00019248,2]
[370022766,1751838576340,-427.0,0.0001925,2]
[370022767,1751838576363,-356.0,0.00019254,2]
[370022768,1751838576384,-500.0,0.00019256,2]
[370022769,1751838576407,-339.77221606,0.00019263,2]
[370022770,1751838576431,-427.0,0.00019271,2]
[370022771,1751838576453,-423.63627793,0.00019274,2]
[370022772,1751838576474,-391.64720895,0.00019278,2]
[370022773,1751838576495,-160.54,0.00019278,2]
[370022774,1751838576516,-1694.45432646,0.00019288,2]
[370022775,1751838576539,-423.63627793,0.00019289,2]
[370022776,1751838576559,-391.64720895,0.000193,2]
[370022777,1751838576580,-2443.40645574,0.000193,2]
[370022778,1751838576941,-7330.14354426,0.000193,2]
[370022779,1751838576966,-1971.90315177,0.00019307,2]
[370022780,1751838576990,-200.0,0.00019307,2]
[370022781,1751838577015,-339.77221606,0.00019308,2]
[370022782,1751838577040,-158.18108791,0.00019309,2]
[370022783,1751838577432,-1813.72206386,0.00019309,2]
[370022784,1751838577455,-373.31675129,0.0001932,2]
[370022785,1751838577479,-427.0,0.00019322,2]
[370022786,1751838577502,-7385.96118485,0.00019335,2]
[370022787,1751838577915,-10000.0,0.00019335,2]
[370022788,1751838578603,-1515.184674,0.00019241,2]
[370022789,1751838578627,-8484.815326,0.00019335,2]
[370022790,1751838579010,-10000.0,0.00019335,2]
[370022791,1751838579357,-4179.55221997,0.00019335,2]
[370022792,1751838579383,-373.31675129,0.00019338,2]
[370022793,1751838579411,-1312.94546957,0.00019341,2]
[370022794,1751838579436,-1312.94546957,0.00019348,2]
[370022795,1751838579457,-1151.92466872,0.00019354,2]
[370022796,1751838579482,-339.77221606,0.00019354,2]
[370022797,1751838579503,-640.22271798,0.0001937,2]
[370022798,1751838579524,-689.32048684,0.0001937,2]
[370022799,1751838579836,-10.67951316,0.0001937,2]
[370022800,1751838579862,-1151.92466872,0.00019372,2]
[370022801,1751838579888,-420.0,0.00019383,2]
[370022802,1751838579912,-356.0,0.00019388,2]
[370022803,1751838579933,-1694.45432646,0.00019388,2]
[370022804,1751838579956,-6366.94149166,0.00019396,2]
[370022805,1751838580307,-9343.90007721,0.00019396,2]
[370022806,1751838580332,-339.77221606,0.00019399,2]
[370022807,1751838580356,-316.32770673,0.000194,2]
[370022808,1751838581011,-1428.67229327,0.000194,2]
[370022809,1751838581035,-168.0,0.00019415,2]
[370022810,1751838581058,-168.0,0.00019416,2]
[370022811,1751838581087,-356.0,0.00019417,2]
[370022812,1751838581110,-339.77221606,0.00019445,2]
[370022813,1751838581134,-460.0,0.00019452,2]
[370022814,1751838581156,-778.98,0.00019452,2]
[370022815,1751838581181,-855.96,0.00019452,2]
[370022816,1751838581202,-199.19684376,0.00019452,2]
[370022817,1751838581223,-400.0,0.0001947,2]
[370022818,1751838581244,-700.0,0.0001947,2]
[370022819,1751838581268,-4145.41864691,0.00019487,2]
[370022820,1751838582281,-328.2833,0.00019141,2]
[370022821,1751838582307,-886.0091024,0.00019487,2]
[370022822,1751838582330,-1680.0,0.0001949,2]
[370022823,1751838582354,-339.77221606,0.0001949,2]
[370022824,1751838582379,-500.0,0.00019509,2]
[370022825,1751838582408,-1621.71175068,0.00019521,2]
[370022826,1751838582431,-339.77221606,0.00019536,2]
[370022827,1751838582454,-215.0738,0.00019539,2]
[370022828,1751838582478,-339.77221606,0.00019581,2]
[370022829,1751838582502,-427.0,0.00019591,2]
[370022830,1751838582526,-1100.0,0.000196,7]
[370022831,1751838582551,-500.0,0.00019602,2]
[370022832,1751838582577,-427.0,0.00019616,2]
[370022833,1751838582603,-1295.60539874,0.00019626,2]
[370022834,1751838584776,-2372.23567995,0.00019626,2]
[370022835,1751838584799,-339.77221606,0.00019627,2]
[370022836,1751838584822,-151.0,0.00019631,2]
[370022837,1751838584846,-168.0,0.00019641,2]
[370022838,1751838584867,-700.0,0.0001967,2]
[370022839,1751838584891,-339.77221606,0.00019672,2]
[370022840,1751838584912,-500.0,0.00019679,2]
[370022841,1751838584933,-500.0,0.00019679,2]
[370022842,1751838584955,-500.0,0.00019696,2]
[370022843,1751838584977,-4429.21988793,0.000197,2]
[370022844,1751838609116,-168.0,0.000182,2]
[370022845,1751838609141,-168.0,0.00018911,2]
[370022846,1751838609163,-1204.15,0.00019,2]
[370022847,1751838609188,-168.0,0.00019207,2]
[370022848,1751838609212,-168.0,0.00019551,2]
[370022849,1751838609235,-1200.0,0.00019699,2]
[370022850,1751838609257,-300.0,0.00019699,2]
[370022851,1751838609280,-1834.85,0.000197,2]
[370022865,1751838632428,-168.0,0.00018337,2]
[370022866,1751838632437,-6777.0001,0.00018578,2]
[370022867,1751838632447,-168.0,0.00018866,2]
[370022868,1751838632456,-168.0,0.00019107,2]
[370022869,1751838632465,-210.28571445,0.00019135,2]
[370022870,1751838632475,-754.0,0.0001918,2]
[370022871,1751838632484,-168.0,0.0001944,2]
[370022872,1751838632494,-33055.9014615,0.0001969,2]
[370022873,1751838632504,-16670.78425695,0.000197,2]
[370022874,1751838632513,-2200.0,0.000197,7]
[370022875,1751838632522,-291.59805,0.000197,2]
[370022876,1751838632532,-189.35,0.00019703,2]
[370022877,1751838632541,-339.77221606,0.00019718,2]
[370022878,1751838632551,-150.0,0.00019719,2]
[370022879,1751838632562,-150.0,0.0001972,2]
[370022880,1751838632572,-168.0,0.0001972,2]
[370022881,1751838632581,-151.0,0.00019723,2]
[370022882,1751838632591,-150.0,0.00019723,2]
[370022883,1751838632600,-150.0,0.00019725,2]
[370022884,1751838632609,-460.0,0.00019726,2]
[370022885,1751838632619,-778.98,0.00019726,2]
[370022886,1751838632628,-855.96,0.00019726,2]
[370022887,1751838632637,-150.0,0.00019726,2]
[370022888,1751838632646,-156.587,0.00019726,2]
[370022889,1751838632655,-150.0,0.00019729,2]
[370022890,1751838632664,-150.0,0.0001973,2]
[370022891,1751838632674,-150.0,0.00019734,2]
[370022892,1751838632683,-150.0,0.00019736,2]
[370022893,1751838632693,-150.0,0.00019738,2]
[370022894,1751838632703,-150.0,0.00019742,2]
[370022895,1751838632713,-150.0,0.00019744,2]
[370022896,1751838632722,-150.0,0.00019744,2]
[370022897,1751838632731,-150.0,0.00019745,2]
[370022898,1751838632740,-150.0,0.00019746,2]
[370022899,1751838632750,-168.0,0.00019746,2]
[370022901,1751838632759,-150.0,0.00019753,2]
[370022903,1751838632768,-150.0,0.00019754,2]
[370022905,1751838632778,-1249.0,0.00019755,2]
[370022906,1751838632790,-150.0,0.0001976,2]
[370022908,1751838632799,-150.0,0.00019761,2]
[370022909,1751838632808,-339.77221606,0.00019763,2]
[370022910,1751838632817,-150.0,0.00019769,2]
[370022911,1751838632827,-150.0,0.00019771,2]
[370022912,1751838632836,-150.0,0.00019773,2]
[370022913,1751838632845,-168.0,0.00019775,2]
[370022914,1751838632854,-500.0,0.00019786,2]
[370022916,1751838632864,-500.0,0.00019786,2]
[370022918,1751838632874,-500.0,0.00019786,2]
[370022920,1751838632883,-526.0,0.00019786,7]
[370022923,1751838632893,-500.0,0.00019789,2]
[370022925,1751838632902,-150.0,0.0001979,2]
[370022927,1751838632911,-150.0,0.00019791,2]
[370022928,1751838632921,-150.0,0.00019793,2]
[370022930,1751838632930,-168.0,0.00019796,2]
[370022933,1751838632940,-150.0,0.00019796,2]
[370022934,1751838632949,-150.0,0.00019798,2]
[370022937,1751838632959,-1500.0,0.000198,2]
[370022939,1751838632968,-1000.0,0.000198,2]
[370022940,1751838632977,-3300.0,0.000198,7]
[370022942,1751838632986,-187.21407411,0.000198,2]
[370022944,1751838632995,-150.0,0.00019803,2]
[370022947,1751838633005,-150.0,0.00019805,2]
[370022948,1751838633015,-150.0,0.00019805,2]
[370022949,1751838633024,-150.0,0.00019807,2]
[370022951,1751838633033,-150.0,0.00019808,2]
[370022953,1751838633043,-339.77221606,0.00019809,2]
[370022955,1751838633052,-150.0,0.00019813,2]
[370022957,1751838633062,-150.0,0.00019814,2]
[370022958,1751838633071,-151.0,0.00019816,2]
[370022959,1751838633081,-150.0,0.00019819,2]
[370022960,1751838633091,-150.0,0.00019822,2]
[370022961,1751838633101,-427.0,0.00019822,2]
[370022962,1751838633110,-150.0,0.00019824,2]
[370022963,1751838633120,-150.0,0.00019824,2]
[370022964,1751838633130,-150.0,0.00019827,2]
[370022965,1751838633139,-150.0,0.00019827,2]
[370022966,1751838633149,-150.0,0.00019828,2]
[370022967,1751838633159,-150.0,0.00019831,2]
[370022968,1751838633168,-168.0,0.00019832,2]
[370022969,1751838633177,-150.0,0.00019837,2]
[370022970,1751838633187,-427.0,0.0001984,2]
[370022971,1751838633197,-150.0,0.00019844,2]
[370022972,1751838633206,-150.0,0.00019845,2]
[370022973,1751838633215,-150.0,0.00019848,2]
[370022974,1751838633224,-150.0,0.00019848,2]
[370022975,1751838633234,-150.0,0.00019848,2]
[370022976,1751838633243,-150.0,0.00019849,2]
[370022977,1751838633252,-1000.0,0.0001985,2]
[370022978,1751838633262,-150.0,0.00019851,2]
[370022979,1751838633272,-150.0,0.00019851,2]
[370022980,1751838633281,-339.77221606,0.00019854,2]
[370022981,1751838633290,-500.33,0.00019855,2]
[370022982,1751838633300,-400.0,0.00019855,2]
[370022983,1751838633309,-200.0,0.00019855,2]
[370022984,1751838633319,-200.0,0.00019855,2]
[370022985,1751838633328,-400.0,0.00019855,2]
[370022986,1751838633338,-400.0,0.00019855,2]
[370022987,1751838633348,-400.0,0.00019855,2]
[370022988,1751838633358,-400.0,0.00019855,2]
[370022989,1751838633367,-400.0,0.00019855,2]
[370022990,1751838633377,-400.0,0.00019855,2]
[370022991,1751838633387,-400.0,0.00019855,2]
[370022992,1751838633396,-400.0,0.00019855,2]
[370022993,1751838633406,-400.0,0.00019855,2]
[370022994,1751838633415,-400.0,0.00019855,2]
[370022995,1751838633425,-400.0,0.00019855,2]
[370022996,1751838633435,-400.0,0.00019855,2]
[370022997,1751838633444,-400.0,0.00019855,2]
[370022998,1751838633453,-400.0,0.00019855,2]
[370022999,1751838633462,-400.0,0.00019855,2]
[370023000,1751838633471,-400.0,0.00019855,2]
[370023001,1751838633480,-400.0,0.00019855,2]
[370023002,1751838633490,-400.0,0.00019855,2]
[370023003,1751838633500,-400.0,0.00019855,2]
[370023004,1751838633509,-400.0,0.00019855,2]
[370023005,1751838633519,-200.0,0.00019855,2]
[370023006,1751838633528,-200.0,0.00019855,2]
[370023007,1751838633538,-200.0,0.00019855,2]
[370023008,1751838633547,-200.0,0.00019855,2]
[370023009,1751838633556,-200.0,0.00019855,2]
[370023010,1751838633565,-400.0,0.00019855,2]
[370023011,1751838633575,-400.0,0.00019855,2]
[370023012,1751838633584,-400.0,0.00019855,2]
[370023013,1751838633594,-400.0,0.00019855,2]
[370023014,1751838633603,-400.0,0.00019855,2]
[370023015,1751838633612,-400.0,0.00019855,2]
[370023016,1751838633622,-400.0,0.00019855,2]
[370023017,1751838633632,-400.0,0.00019855,2]
[370023018,1751838633641,-400.0,0.00019855,2]
[370023019,1751838633650,-200.0,0.00019855,2]
[370023020,1751838633659,-400.0,0.00019855,2]
[370023021,1751838633668,-400.0,0.00019855,2]
[370023022,1751838633678,-400.0,0.00019855,2]
[370023023,1751838633687,-400.0,0.00019855,2]
[370023024,1751838633697,-400.0,0.00019855,2]
[370023025,1751838633706,-400.0,0.00019855,2]
[370023026,1751838633716,-400.0,0.00019855,2]
[370023027,1751838633725,-400.0,0.00019855,2]
[370023028,1751838633734,-400.0,0.00019855,2]
[370023029,1751838633743,-400.0,0.00019855,2]
[370023030,1751838633752,-400.0,0.00019855,2]
[370023031,1751838633762,-400.0,0.00019855,2]
[370023032,1751838633771,-400.0,0.00019855,2]
[370023033,1751838633782,-400.0,0.00019855,2]
[370023034,1751838633792,-400.0,0.00019855,2]
[370023035,1751838633801,-400.0,0.00019855,2]
[370023036,1751838633810,-400.0,0.00019855,2]
[370023037,1751838633820,-400.0,0.00019855,2]
[370023038,1751838633830,-400.0,0.00019855,2]
[370023039,1751838633839,-400.0,0.00019855,2]
[370023040,1751838633848,-400.0,0.00019855,2]
[370023041,1751838633859,-400.0,0.00019855,2]
[370023042,1751838633868,-400.0,0.00019855,2]
[370023043,1751838633877,-400.0,0.00019855,2]
[370023044,1751838633886,-400.0,0.00019855,2]
[370023045,1751838633895,-400.0,0.00019855,2]
[370023046,1751838633905,-400.0,0.00019855,2]
[370023047,1751838633914,-200.0,0.00019855,2]
[370023048,1751838633926,-200.0,0.00019855,2]
[370023049,1751838633936,-200.0,0.00019855,2]
[370023050,1751838633945,-200.0,0.00019855,2]
[370023051,1751838633956,-200.0,0.00019855,2]
[370023052,1751838633966,-200.0,0.00019855,2]
[370023053,1751838633976,-200.0,0.00019855,2]
[370023054,1751838633985,-200.0,0.00019855,2]
[370023055,1751838633994,-200.0,0.00019855,2]
[370023056,1751838634004,-200.0,0.00019855,2]
[370023057,1751838634013,-200.0,0.00019855,2]
[370023058,1751838634023,-200.0,0.00019855,2]
[370023059,1751838634032,-200.0,0.00019855,2]
[370023060,1751838634042,-200.0,0.00019855,2]
[370023061,1751838634051,-400.0,0.00019855,2]
[370023062,1751838634061,-400.0,0.00019855,2]
[370023063,1751838634070,-400.0,0.00019855,2]
[370023064,1751838634080,-400.0,0.00019855,2]
[370023065,1751838634089,-400.0,0.00019855,2]
[370023066,1751838634098,-400.0,0.00019855,2]
[370023067,1751838634108,-400.0,0.00019855,2]
[370023068,1751838634117,-200.0,0.00019855,2]
[370023069,1751838634127,-200.0,0.00019855,2]
[370023070,1751838634136,-200.0,0.00019855,2]
[370023071,1751838634146,-200.0,0.00019855,2]
[370023072,1751838634155,-200.0,0.00019855,2]
[370023073,1751838634166,-200.0,0.00019855,2]
[370023074,1751838634176,-200.0,0.00019855,2]
[370023075,1751838634186,-200.0,0.00019855,2]
[370023076,1751838634196,-200.0,0.00019855,2]
[370023077,1751838634206,-200.0,0.00019855,2]
[370023078,1751838634215,-200.0,0.00019855,2]
[370023079,1751838634225,-200.0,0.00019855,2]
[370023080,1751838634234,-200.0,0.00019855,2]
[370023081,1751838634244,-166.0,0.00019855,2]
[370023082,1751838634253,-166.0,0.00019855,2]
[370023083,1751838634263,-150.0,0.00019856,2]
[370023084,1751838634273,-150.0,0.00019859,2]
[370023085,1751838634282,-150.0,0.0001986,2]
[370023086,1751838634291,-153.06128819,0.00019865,2]
[370023087,1751838634301,-150.0,0.00019865,2]
[370023088,1751838634310,-150.0,0.00019872,2]
[370023089,1751838634320,-500.0,0.00019873,2]
[370023090,1751838634329,-150.0,0.00019877,2]
[370023091,1751838634338,-150.0,0.00019878,2]
[370023092,1751838634347,-150.0,0.0001988,2]
[370023093,1751838634357,-500.0,0.00019882,2]
[370023094,1751838634366,-150.0,0.00019885,2]
[370023095,1751838634376,-150.0,0.00019888,2]
[370023096,1751838634385,-150.0,0.00019888,2]
[370023097,1751838634395,-150.0,0.00019889,2]
[370023098,1751838634404,-150.0,0.0001989,2]
[370023099,1751838634413,-150.0,0.00019897,2]
[370023100,1751838634423,-300.0,0.00019899,2]
[370023101,1751838634432,-210.1,0.000199,2]
[370023102,1751838634441,-21574.93889852,0.000199,2]
[370023103,1751838634463,-47093.6975136,0.000199,2]
[370023104,1751838634475,-795.366305,0.000199,2]
[370023105,1751838634486,-175488.61997084,0.000199,2]
[370023106,1751838634496,-235.12389366,0.000199,2]
[370023107,1751838634505,-444.3717,0.000199,2]
[370023108,1751838634515,-210.28571445,0.000199,7]
[370023109,1751838634525,-4500.0,0.000199,7]
[370023110,1751838634535,-339.77221606,0.000199,2]
[370023111,1751838634544,-150.0,0.00019901,2]